fUST/lending_fUST_20240714
["ID","MTS","AMOUNT","RATE_DAILY","PERIOD"]
[332004126,1720931440939,-500.0,0.00024657,2]
[332004129,1720931440948,-500.0,0.00024657,2]
[332004131,1720931440957,-500.0,0.00024657,2]
[332004133,1720931440966,-538.3221248,0.00024657,2]
[332004135,1720931440976,-500.0,0.00024657,2]
[332004137,1720931440985,-500.0,0.00024657,2]
[332004139,1720931440995,-500.0,0.00024657,2]
[332004140,1720931441004,-500.0,0.00024657,2]
[332004142,1720931441014,-500.0,0.00024657,2]
[332004144,1720931441024,-509.10081226,0.00024657,2]
[332004146,1720931441033,-500.0,0.00024657,2]
[332004148,1720931441043,-500.0,0.00024657,2]
[332004150,1720931441052,-476.43685515,0.00024657,2]
[332004152,1720931441062,-500.0,0.00024657,2]
[332004154,1720931441071,-500.0,0.00024657,2]
[332004168,1720931441189,-549.98809048,0.00024657,2]
[332004170,1720931441199,-500.0,0.00024657,2]
[332004172,1720931441210,-503.35804317,0.00024657,2]
[332004174,1720931441220,-500.0,0.00024657,2]
[332004176,1720931441230,-500.0,0.00024657,2]
[332004178,1720931441239,-1488.48,0.00024657,2]
[332004180,1720931441249,-500.0,0.00024657,2]
[332004182,1720931441257,-500.0,0.00024657,2]
[332004184,1720931441267,-500.0,0.00024657,2]
[332004186,1720931441277,-500.0,0.00024657,2]
[332004188,1720931441286,-519.35035287,0.00024657,2]
[332004190,1720931441296,-500.0,0.00024657,2]
[332004192,1720931441306,-500.0,0.00024657,2]
[332004194,1720931441316,-524.26860186,0.00024657,2]
[332004196,1720931441327,-228.94963735,0.00024657,2]
[332004198,1720931441337,-500.0,0.00024657,2]
[332004200,1720931441346,-504.68680287,0.00024657,2]
[332004202,1720931441356,-500.0,0.00024657,2]
[332004204,1720931441366,-501.03474475,0.00024657,2]
[332004206,1720931441376,-500.0,0.00024657,2]
[332004208,1720931441386,-200.0,0.00024657,2]
[332004210,1720931441395,-500.0,0.00024657,2]
[332004212,1720931441404,-639.03,0.00024657,2]
[332004214,1720931441414,-580.57322079,0.00024657,2]
[332004216,1720931441423,-500.0,0.00024657,2]
[332004219,1720931441433,-500.0,0.00024657,2]
[332004220,1720931441444,-447.49303552,0.00024657,2]
[332004442,1720931442880,-52.50696448,0.00024657,2]
[332004445,1720931442891,-223.99046831,0.00024657,2]
[332004448,1720931442901,-507.36418917,0.00024657,2]
[332004451,1720931442910,-501.13533094,0.00024657,2]
[332004454,1720931442919,-505.60404818,0.00024657,2]
[332004457,1720931442929,-500.0,0.00024657,2]
[332004460,1720931442942,-500.0,0.00024657,2]
[332004463,1720931442951,-453.65699878,0.00024657,2]
[332004472,1720931442992,-46.34300122,0.00024657,2]
[332004475,1720931443001,-500.0,0.00024657,2]
[332004478,1720931443012,-500.0,0.00024657,2]
[332004481,1720931443021,-438.64220811,0.00024657,2]
[332007414,1720931481400,14953.52574492,0.00022399,2]
[332007416,1720931536587,1066.54542754,0.00021917,2]
[332007417,1720932018503,7746.1714327,0.00014998,2]
[332007425,1720932299181,1609.40940753,0.00014999,2]
[332007427,1720932343151,-452.48864114,0.00018179,2]
[332007428,1720932343172,-293.73911192,0.0002,2]
[332007429,1720932343195,-167.815724,0.00020925,2]
[332007430,1720932343221,-167.815724,0.00021024,2]
[332007431,1720932343242,-410.115395,0.00021044,2]
[332007432,1720932343263,-210.05048437,0.00021095,2]
[332007433,1720932343381,-156.96937206,0.00021095,2]
[332007434,1720932343403,-209.88046335,0.00021095,2]
[332007439,1720932433112,-294.51404765,0.0002,2]
[332007440,1720932433133,-300.0,0.0002075,2]
[332007441,1720932433156,-300.0,0.0002075,2]
[332007442,1720932433176,-211.09181494,0.00020751,2]
[332007443,1720932439139,-1268.77945224,0.00020751,2]
[332007444,1720932441146,-154.66488382,0.00020751,2]
[332007445,1720932441169,-1681.05800437,0.00020751,2]
[332007446,1720932451117,-154.91669332,0.00020545,2]
[332007447,1720932451138,-158.72193478,0.00020545,2]
[332007448,1720932451159,-6534.69133822,0.00020751,2]
[332007449,1720932452103,-8936.78362166,0.00020751,2]
[332007450,1720932452134,-1301.5991641,0.00020751,2]
[332007458,1720932546103,-154.55950541,0.00018899,2]
[332007459,1720932546126,-191.30476359,0.00018899,2]
[332007460,1720932546148,-150.0,0.000189,2]
[332007461,1720932546170,-405.25224835,0.00019165,2]
[332007462,1720932546191,-154.61316309,0.00019165,2]
[332007463,1720932546212,-286.34180723,0.00019165,2]
[332007469,1720932548171,-154.62873821,0.00020545,2]
[332007470,1720932548193,-300.0,0.0002075,2]
[332007471,1720932548215,-300.0,0.0002075,2]
[332007472,1720932548237,-6902.79521922,0.00020751,2]
[332007473,1720932548258,-1366.50683382,0.00020751,2]
[332007474,1720932548279,-428.71334484,0.00020751,2]
[332007475,1720932548301,-238.84957689,0.00020751,2]
[332007476,1720932548427,-1000.0,0.00020751,2]
[332007477,1720932548451,-6445.86787165,0.00020751,2]
[332007478,1720932548472,-154.55950541,0.00021095,2]
[332007479,1720932548494,-154.55950541,0.00021095,2]
[332007480,1720932548517,-155.47242201,0.00021095,2]
[332007481,1720932548539,-307.171122,0.00021096,2]
[332007482,1720932548562,-167.815724,0.00021123,2]
[332007483,1720932548583,-167.815724,0.00021222,2]
[332007484,1720932548604,-167.815724,0.00021321,2]
[332007485,1720932548625,-167.815724,0.00021421,2]
[332007486,1720932548646,-167.815724,0.0002152,2]
[332007487,1720932548668,-167.815724,0.00021619,2]
[332007488,1720932548690,-167.815724,0.00021718,2]
[332007489,1720932548714,-167.815724,0.00021817,2]
[332007490,1720932548738,-167.815724,0.00021916,2]
[332007491,1720932548760,-1065.80381372,0.00021917,2]
[332007492,1720932548782,-166.914765,0.00021918,2]
[332007493,1720932548806,-2000.0,0.00022,3]
[332007494,1720932548831,-167.815724,0.00022015,2]
[332007495,1720932548852,-880.93169364,0.0002217,2]
[332007496,1720932552103,-212.564619,0.00022399,2]
[332007497,1720932557171,750.0,0.00021096,2]
[332007501,1720932574920,154.55950541,0.00020545,2]
[332007502,1720932589070,196.82523815,0.00021917,2]
[332007528,1720932632046,-283.09496865,0.00022399,2]
[332007529,1720932632058,-26.04716213,0.00022559,2]
[332007543,1720932638039,-140.86760287,0.00022559,2]
[332007544,1720932638050,-166.914765,0.000232,2]
[332007545,1720932638059,-162.042658,0.00023237,2]
[332007546,1720932638072,-166.914765,0.00023841,2]
[332007547,1720932638082,-150.0,0.000239,2]
[332007548,1720932638091,-2884.0,0.00023958,2]
[332007549,1720932638100,-300.0,0.00023966,2]
[332007550,1720932638109,-11438.75935618,0.00024,2]
[332007551,1720932638119,-2000.0,0.00024,5]
[332007552,1720932638128,-629.55540631,0.00024399,2]
[332007553,1720932638139,-514.61877238,0.0002448,2]
[332007554,1720932638148,-500.0,0.0002448,2]
[332007555,1720932638158,-176.12461105,0.0002448,2]
[332007556,1720932638168,-467.88242466,0.0002448,2]
[332007557,1720932638177,-20727.8833951,0.00024481,2]
[332007558,1720932638186,-172.86483998,0.00024481,2]
[332007559,1720932638196,-166.914765,0.00024482,2]
[332007560,1720932638206,-1649.04047692,0.00024557,2]
[332007561,1720932638215,-150.112233,0.000246,2]
[332007562,1720932638224,-1649.04047688,0.00024626,2]
[332007563,1720932638233,-39648.498845,0.00024647,3]
[332007564,1720932638242,-3140.43078774,0.00024657,5]
[332007565,1720932638252,-893.2074911,0.00024657,2]
[332007566,1720932638261,-200.0,0.00024657,2]
[332007567,1720932638270,-500.0,0.00024657,2]
[332007568,1720932638280,-517.57632176,0.00024657,2]
[332007569,1720932638289,-612.4,0.00024657,2]
[332007570,1720932638298,-500.0,0.00024657,2]
[332007571,1720932638307,-500.0,0.00024657,2]
[332007572,1720932638316,-500.0,0.00024657,2]
[332007573,1720932638325,-530.63060473,0.00024657,2]
[332007574,1720932638334,-500.0,0.00024657,2]
[332007575,1720932638344,-500.0,0.00024657,2]
[332007576,1720932638353,-500.0,0.00024657,2]
[332007577,1720932638362,-500.0,0.00024657,2]
[332007578,1720932638371,-500.0,0.00024657,2]
[332007579,1720932638380,-500.0,0.00024657,2]
[332007580,1720932638390,-500.0,0.00024657,2]
[332007581,1720932638399,-500.0,0.00024657,2]
[332007582,1720932638408,-500.0,0.00024657,2]
[332007583,1720932638418,-500.0,0.00024657,2]
[332007584,1720932638427,-500.0,0.00024657,2]
[332007585,1720932638436,-500.0,0.00024657,2]
[332007586,1720932638445,-500.0,0.00024657,2]
[332007587,1720932638455,-200.0,0.00024657,7]
[332007588,1720932638465,-500.0,0.00024657,2]
[332007589,1720932638474,-500.0,0.00024657,2]
[332007590,1720932638483,-500.0,0.00024657,2]
[332007591,1720932638493,-500.0,0.00024657,2]
[332007592,1720932638503,-495.87183754,0.00024657,2]
[332007593,1720932638512,-503.74059507,0.00024657,2]
[332007594,1720932638522,-500.0,0.00024657,2]
[332007595,1720932638531,-151.0,0.00024657,7]
[332007596,1720932638541,-151.0,0.00024657,7]
[332007597,1720932638550,-500.0,0.00024657,2]
[332007598,1720932638559,-500.0,0.00024657,2]
[332007599,1720932638568,-501.2004926,0.00024657,2]
[332007600,1720932638577,-500.0,0.00024657,2]
[332007601,1720932638587,-504.97266757,0.00024657,2]
[332007602,1720932638597,-507.58108409,0.00024657,2]
[332007603,1720932638608,-500.0,0.00024657,2]
[332007604,1720932638618,-500.0,0.00024657,2]
[332007605,1720932638629,-503.46733438,0.00024657,2]
[332007606,1720932638641,-500.0,0.00024657,2]
[332007607,1720932638652,-500.0,0.00024657,2]
[332007608,1720932638664,-500.0,0.00024657,2]
[332007609,1720932638674,-500.0,0.00024657,2]
[332007610,1720932638684,-500.0,0.00024657,2]
[332007611,1720932638693,-500.0,0.00024657,2]
[332007612,1720932638702,-514.73077716,0.00024657,2]
[332007613,1720932638711,-500.0,0.00024657,2]
[332007614,1720932638721,-500.0,0.00024657,2]
[332007615,1720932638730,-500.0,0.00024657,2]
[332007616,1720932638741,-500.0,0.00024657,2]
[332007617,1720932638750,-500.0,0.00024657,2]
[332007618,1720932638759,-500.0,0.00024657,2]
[332007619,1720932638768,-500.0,0.00024657,2]
[332007620,1720932638778,-501.02106288,0.00024657,2]
[332007621,1720932638787,-500.0,0.00024657,2]
[332007622,1720932638796,-500.0,0.00024657,2]
[332007623,1720932638806,-500.0,0.00024657,2]
[332007624,1720932638815,-500.0,0.00024657,2]
[332007625,1720932638825,-509.25306536,0.00024657,2]
[332007626,1720932638834,-500.0,0.00024657,2]
[332007627,1720932638844,-205.40007086,0.00024657,2]
[332007628,1720932638853,-500.0,0.00024657,2]
[332007629,1720932638863,-1085.79,0.00024657,2]
[332007630,1720932638872,-512.11343887,0.00024657,2]
[332007631,1720932638881,-500.0,0.00024657,2]
[332007632,1720932638891,-500.0,0.00024657,2]
[332007633,1720932638900,-500.0,0.00024657,2]
[332007634,1720932638910,-500.0,0.00024657,2]
[332007635,1720932638920,-500.0,0.00024657,2]
[332007636,1720932638929,-500.0,0.00024657,2]
[332007637,1720932638938,-500.0,0.00024657,2]
[332007638,1720932638948,-500.0,0.00024657,2]
[332007639,1720932638959,-255.06863391,0.00024657,2]
[332007640,1720932638968,-500.0,0.00024657,2]
[332007641,1720932638977,-500.0,0.00024657,2]
[332007642,1720932638989,-500.0,0.00024657,2]
[332007643,1720932638998,-500.0,0.00024657,2]
[332007644,1720932639008,-500.0,0.00024657,2]
[332007645,1720932639017,-500.0,0.00024657,2]
[332007646,1720932639027,-500.0,0.00024657,2]
[332007647,1720932639037,-500.0,0.00024657,2]
[332007648,1720932639046,-500.0,0.00024657,2]
[332007649,1720932639056,-500.0,0.00024657,2]
[332007650,1720932639066,-500.0,0.00024657,2]
[332007651,1720932639076,-461.34220818,0.00024657,2]
[332007652,1720932639086,-500.0,0.00024657,2]
[332007653,1720932639096,-507.16474027,0.00024657,2]
[332007654,1720932639105,-502.98421142,0.00024657,2]
[332007655,1720932639114,-500.0,0.00024657,2]
[332007656,1720932639124,-500.0,0.00024657,2]
[332007657,1720932639133,-501.26110436,0.00024657,2]
[332007658,1720932639143,-151.0,0.00024657,7]
[332007659,1720932639152,-500.0,0.00024657,2]
[332007660,1720932639162,-500.0,0.00024657,2]
[332007661,1720932639171,-515.11281097,0.00024657,2]
[332007662,1720932639180,-151.0,0.00024657,7]
[332007663,1720932639189,-151.0,0.00024657,7]
[332007664,1720932639198,-500.0,0.00024657,2]
[332007665,1720932639207,-151.0,0.00024657,7]
[332007666,1720932639216,-500.0,0.00024657,2]
[332007667,1720932639226,-151.0,0.00024657,7]
[332007668,1720932639235,-300.08189209,0.00024657,2]
[332007669,1720932639331,-151.0,0.00024657,7]
[332007670,1720932639340,-151.0,0.00024657,7]
[332007671,1720932639350,-483.11386601,0.00024657,2]
[332007672,1720932639359,-500.0,0.00024657,2]
[332007673,1720932639368,-500.0,0.00024657,2]
[332007674,1720932639378,-500.0,0.00024657,2]
[332007675,1720932639387,-281.77184314,0.00024657,2]
[332007676,1720932639396,-500.0,0.00024657,2]
[332007677,1720932639405,-500.0,0.00024657,2]
[332007678,1720932639415,-162.20251993,0.00024657,2]
[332007679,1720932639425,-500.0,0.00024657,2]
[332007680,1720932639435,-500.0,0.00024657,2]
[332007681,1720932639445,-500.0,0.00024657,2]
[332007683,1720932639455,-500.0,0.00024657,2]
[332007685,1720932639465,-500.0,0.00024657,2]
[332007686,1720932639474,-500.0,0.00024657,2]
[332007687,1720932639484,-500.0,0.00024657,2]
[332007688,1720932639494,-500.0,0.00024657,2]
[332007689,1720932639503,-500.0,0.00024657,2]
[332007690,1720932639513,-500.0,0.00024657,2]
[332007691,1720932639523,-500.0,0.00024657,2]
[332007692,1720932639533,-500.0,0.00024657,2]
[332007693,1720932639543,-500.0,0.00024657,2]
[332007694,1720932639554,-151.0,0.00024657,7]
[332007695,1720932639563,-151.0,0.00024657,7]
[332007696,1720932639572,-151.0,0.00024657,7]
[332007697,1720932639582,-500.0,0.00024657,2]
[332007698,1720932639591,-151.0,0.00024657,7]
[332007699,1720932639600,-151.0,0.00024657,7]
[332007700,1720932639610,-151.0,0.00024657,7]
[332007701,1720932639619,-151.0,0.00024657,7]
[332007702,1720932639629,-151.0,0.00024657,7]
[332007703,1720932639638,-151.0,0.00024657,7]
[332007704,1720932639648,-500.0,0.00024657,2]
[332007705,1720932639657,-151.0,0.00024657,7]
[332007706,1720932639667,-292.443824,0.00024657,7]
[332007707,1720932639676,-503.17633158,0.00024657,2]
[332007708,1720932639687,-500.0,0.00024657,2]
[332007709,1720932639696,-500.0,0.00024657,2]
[332007710,1720932639706,-500.0,0.00024657,2]
[332007711,1720932639715,-500.0,0.00024657,2]
[332007712,1720932639725,-571.03879832,0.00024657,2]
[332007713,1720932639734,-500.0,0.00024657,2]
[332007714,1720932639743,-505.27859909,0.00024657,2]
[332007715,1720932639752,-344.44860253,0.00024657,2]
[332007716,1720932639761,-512.44665736,0.00024657,2]
[332007717,1720932639770,-500.0,0.00024657,2]
[332007718,1720932639780,-500.0,0.00024657,2]
[332007719,1720932639790,-500.0,0.00024657,2]
[332007720,1720932639800,-500.0,0.00024657,2]
[332007721,1720932639811,-500.0,0.00024657,2]
[332007722,1720932639823,-500.0,0.00024657,2]
[332007723,1720932639833,-502.32846549,0.00024657,2]
[332007724,1720932639843,-500.0,0.00024657,2]
[332007725,1720932639854,-500.0,0.00024657,2]
[332007726,1720932639864,-500.0,0.00024657,2]
[332007727,1720932639874,-500.0,0.00024657,2]
[332007728,1720932639885,-500.0,0.00024657,2]
[332007729,1720932639894,-500.0,0.00024657,2]
[332007730,1720932639904,-500.0,0.00024657,2]
[332007731,1720932639915,-501.29267939,0.00024657,2]
[332007732,1720932639926,-503.47891009,0.00024657,2]
[332007733,1720932639936,-151.0,0.00024657,7]
[332007734,1720932639947,-500.0,0.00024657,2]
[332007735,1720932639957,-151.0,0.00024657,7]
[332007736,1720932639967,-151.0,0.00024657,7]
[332007737,1720932639976,-500.0,0.00024657,2]
[332007738,1720932639989,-508.81352924,0.00024657,2]
[332007739,1720932639999,-500.0,0.00024657,2]
[332007740,1720932640009,-500.0,0.00024657,2]
[332007741,1720932640019,-500.0,0.00024657,2]
[332007742,1720932640030,-500.0,0.00024657,2]
[332007743,1720932640041,-500.0,0.00024657,2]
[332007744,1720932640052,-501.91521712,0.00024657,2]
[332007746,1720932640066,-507.88805221,0.00024657,2]
[332007748,1720932640076,-500.0,0.00024657,2]
[332007750,1720932640087,-518.59124997,0.00024657,2]
[332007752,1720932640098,-500.0,0.00024657,2]
[332007753,1720932640108,-338.05536234,0.00024657,2]
[332007754,1720932640118,-500.0,0.00024657,2]
[332007755,1720932640128,-500.0,0.00024657,2]
[332007756,1720932640139,-500.0,0.00024657,2]
[332007757,1720932640148,-500.0,0.00024657,2]
[332007758,1720932640158,-500.0,0.00024657,2]
[332007759,1720932640167,-500.0,0.00024657,2]
[332007760,1720932640177,-500.0,0.00024657,2]
[332007761,1720932640186,-500.0,0.00024657,2]
[332007762,1720932640196,-500.0,0.00024657,2]
[332007763,1720932640206,-151.0,0.00024657,4]
[332007764,1720932640216,-151.0,0.00024657,4]
[332007765,1720932640225,-282.621887,0.00024657,4]
[332007766,1720932640236,-500.0,0.00024657,2]
[332007767,1720932640245,-500.0,0.00024657,2]
[332007768,1720932640256,-151.0,0.00024657,7]
[332007769,1720932640266,-151.0,0.00024657,7]
[332007770,1720932640276,-151.0,0.00024657,7]
[332007771,1720932640286,-500.0,0.00024657,2]
[332007772,1720932640296,-500.0,0.00024657,2]
[332007773,1720932640306,-500.0,0.00024657,2]
[332007774,1720932640316,-500.0,0.00024657,2]
[332007775,1720932640326,-500.0,0.00024657,2]
[332007776,1720932640335,-500.0,0.00024657,2]
[332007777,1720932640345,-500.0,0.00024657,2]
[332007778,1720932640355,-500.0,0.00024657,2]
[332007779,1720932640365,-500.0,0.00024657,2]
[332007780,1720932640375,-500.0,0.00024657,2]
[332007781,1720932640385,-500.0,0.00024657,2]
[332007782,1720932640397,-500.0,0.00024657,2]
[332007783,1720932640409,-500.0,0.00024657,2]
[332007784,1720932640419,-500.0,0.00024657,2]
[332007785,1720932640429,-500.0,0.00024657,2]
[332007786,1720932640438,-500.0,0.00024657,2]
[332007787,1720932640449,-500.0,0.00024657,2]
[332007788,1720932640458,-500.0,0.00024657,2]
[332007789,1720932640468,-500.0,0.00024657,2]
[332007790,1720932640477,-501.28255631,0.00024657,2]
[332007791,1720932640487,-500.0,0.00024657,2]
[332007792,1720932640496,-500.0,0.00024657,2]
[332007793,1720932640506,-501.51044542,0.00024657,2]
[332007794,1720932640515,-500.0,0.00024657,2]
[332007795,1720932640524,-500.0,0.00024657,2]
[332007796,1720932640533,-300.0,0.00024657,2]
[332007797,1720932640544,-500.0,0.00024657,2]
[332007798,1720932640556,-151.0,0.00024657,7]
[332007799,1720932640566,-151.630425,0.00024657,7]
[332007800,1720932640576,-500.0,0.00024657,2]
[332007801,1720932640585,-500.0,0.00024657,2]
[332007802,1720932640595,-500.0,0.00024657,2]
[332007803,1720932640605,-500.0,0.00024657,2]
[332007804,1720932640615,-500.0,0.00024657,2]
[332007805,1720932640624,-500.0,0.00024657,2]
[332007806,1720932640634,-500.0,0.00024657,2]
[332007807,1720932640645,-500.0,0.00024657,2]
[332007808,1720932640654,-500.0,0.00024657,2]
[332007809,1720932640663,-500.0,0.00024657,2]
[332007810,1720932640673,-500.0,0.00024657,2]
[332007811,1720932640683,-500.0,0.00024657,2]
[332007812,1720932640693,-500.0,0.00024657,2]
[332007813,1720932640703,-500.0,0.00024657,2]
[332007814,1720932640712,-500.0,0.00024657,2]
[332007815,1720932640722,-500.0,0.00024657,2]
[332007816,1720932640731,-500.0,0.00024657,2]
[332007817,1720932640741,-500.0,0.00024657,2]
[332007818,1720932640750,-500.0,0.00024657,2]
[332007819,1720932640760,-500.0,0.00024657,2]
[332007820,1720932640769,-500.0,0.00024657,2]
[332007821,1720932640779,-500.0,0.00024657,2]
[332007822,1720932640788,-500.0,0.00024657,2]
[332007823,1720932640798,-500.0,0.00024657,2]
[332007824,1720932640807,-500.0,0.00024657,2]
[332007825,1720932640816,-500.0,0.00024657,2]
[332007826,1720932640825,-500.0,0.00024657,2]
[332007827,1720932640835,-500.0,0.00024657,2]
[332007828,1720932640845,-500.0,0.00024657,2]
[332007829,1720932640855,-151.0,0.00024657,7]
[332007830,1720932640864,-500.0,0.00024657,2]
[332007831,1720932640874,-151.0,0.00024657,7]
[332007832,1720932640883,-151.0,0.00024657,7]
[332007833,1720932640893,-500.0,0.00024657,2]
[332007834,1720932640902,-500.0,0.00024657,2]
[332007835,1720932640912,-500.0,0.00024657,2]
[332007836,1720932640921,-549.45184196,0.00024657,2]
[332007837,1720932640931,-515.39709604,0.00024657,2]
[332007838,1720932640940,-500.0,0.00024657,2]
[332007839,1720932640949,-411.95253025,0.00024657,2]
[332007840,1720932640959,-150.87924058,0.00024657,2]
[332007841,1720932640969,-500.0,0.00024657,2]
[332007842,1720932640979,-500.0,0.00024657,2]
[332007843,1720932640992,-500.0,0.00024657,2]
[332007844,1720932641002,-500.0,0.00024657,2]
[332007845,1720932641012,-500.0,0.00024657,2]
[332007846,1720932641023,-500.0,0.00024657,2]
[332007847,1720932641033,-500.0,0.00024657,2]
[332007848,1720932641042,-503.11437863,0.00024657,2]
[332007849,1720932641052,-500.0,0.00024657,2]
[332007850,1720932641062,-500.0,0.00024657,2]
[332007851,1720932641072,-500.0,0.00024657,2]
[332007852,1720932641083,-500.0,0.00024657,2]
[332007853,1720932641093,-500.0,0.00024657,2]
[332007854,1720932641103,-500.0,0.00024657,2]
[332007855,1720932641112,-541.56,0.00024657,2]
[332007856,1720932641122,-512.48032506,0.00024657,2]
[332007857,1720932641132,-503.98285897,0.00024657,2]
[332007858,1720932641142,-500.0,0.00024657,2]
[332007859,1720932641152,-168.118607,0.00024657,7]
[332007860,1720932641161,-167.523711,0.00024657,7]
[332007861,1720932641171,-168.118607,0.00024657,7]
[332007862,1720932641181,-168.118607,0.00024657,7]
[332007863,1720932641190,-500.0,0.00024657,2]
[332007864,1720932641200,-168.118607,0.00024657,7]
[332007865,1720932641209,-168.118607,0.00024657,7]
[332007866,1720932641218,-500.0,0.00024657,2]
[332007867,1720932641228,-168.118607,0.00024657,7]
[332007868,1720932641237,-500.0,0.00024657,2]
[332007869,1720932641248,-500.0,0.00024657,2]
[332007870,1720932641258,-500.0,0.00024657,2]
[332007871,1720932641343,-524.71451294,0.00024657,2]
[332007872,1720932641354,-500.0,0.00024657,2]
[332007873,1720932641364,-508.14337655,0.00024657,2]
[332007874,1720932641373,-500.0,0.00024657,2]
[332007875,1720932641383,-500.0,0.00024657,2]
[332007876,1720932641393,-500.0,0.00024657,2]
[332007877,1720932641402,-249.5839354,0.00024657,2]
[332007878,1720932641411,-500.0,0.00024657,2]
[332007879,1720932641421,-500.0,0.00024657,2]
[332007880,1720932641431,-500.0,0.00024657,2]
[332007881,1720932641440,-500.0,0.00024657,2]
[332007882,1720932641451,-510.25641219,0.00024657,2]
[332007883,1720932641461,-500.0,0.00024657,2]
[332007884,1720932641470,-500.0,0.00024657,2]
[332007885,1720932641480,-500.0,0.00024657,2]
[332007886,1720932641490,-500.0,0.00024657,2]
[332007887,1720932641499,-500.0,0.00024657,2]
[332007888,1720932641509,-500.0,0.00024657,2]
[332007889,1720932641518,-500.0,0.00024657,2]
[332007890,1720932641528,-500.0,0.00024657,2]
[332007891,1720932641537,-500.0,0.00024657,2]
[332007892,1720932641547,-503.72381752,0.00024657,2]
[332007893,1720932641556,-500.0,0.00024657,2]
[332007894,1720932641566,-500.0,0.00024657,2]
[332007895,1720932641576,-500.0,0.00024657,2]
[332007896,1720932641586,-500.0,0.00024657,2]
[332007897,1720932641595,-500.0,0.00024657,2]
[332007898,1720932641605,-500.0,0.00024657,2]
[332007899,1720932641615,-504.1707647,0.00024657,2]
[332007900,1720932641624,-503.42071233,0.00024657,2]
[332007901,1720932641634,-500.0,0.00024657,2]
[332007902,1720932641644,-500.0,0.00024657,2]
[332007903,1720932641654,-500.0,0.00024657,2]
[332007904,1720932641663,-500.0,0.00024657,2]
[332007905,1720932641673,-500.0,0.00024657,2]
[332007906,1720932641683,-500.0,0.00024657,2]
[332007907,1720932641692,-500.0,0.00024657,2]
[332007908,1720932641703,-500.0,0.00024657,2]
[332007909,1720932641713,-500.0,0.00024657,2]
[332007910,1720932641723,-500.0,0.00024657,2]
[332007911,1720932641733,-500.0,0.00024657,2]
[332007912,1720932641743,-540.91527961,0.00024657,2]
[332007913,1720932641753,-500.0,0.00024657,2]
[332007914,1720932641762,-2138.48,0.00024657,2]
[332007915,1720932641772,-500.0,0.00024657,2]
[332007916,1720932641782,-500.0,0.00024657,2]
[332007917,1720932641792,-224.34015796,0.00024657,2]
[332007918,1720932641802,-559.17218063,0.00024657,2]
[332007919,1720932641811,-500.0,0.00024657,2]
[332007920,1720932641822,-500.0,0.00024657,2]
[332007921,1720932641831,-500.0,0.00024657,2]
[332007922,1720932641841,-552.36007147,0.00024657,2]
[332007923,1720932641851,-516.38920297,0.00024657,2]
[332007924,1720932641861,-500.0,0.00024657,2]
[332007925,1720932641870,-500.0,0.00024657,2]
[332007926,1720932641880,-500.0,0.00024657,2]
[332007927,1720932641891,-502.45833963,0.00024657,2]
[332007928,1720932641900,-500.0,0.00024657,2]
[332007929,1720932641910,-500.0,0.00024657,2]
[332007930,1720932641922,-510.56,0.00024657,2]
[332007931,1720932641931,-500.0,0.00024657,2]